[Event "*** Titled Tuesday Blitz"]
[Site "Chess.com"]
[Date "2020.10.27"]
[Round "6"]
[White "Generalas"]
[Black "MatyChess1"]
[Result "0-1"]
[WhiteElo "2344"]
[BlackElo "2541"]
[TimeControl "180+1"]
[EndTime "11:08:07 PDT"]
[Termination "MatyChess1 won by resignation"]

1. e4 {[%clk 0:03:00.9]} 1... c5 {[%clk 0:02:59.6]} 2. c3 {[%clk 0:03:00.5]}
2... Nf6 {[%clk 0:02:59.3]} 3. e5 {[%clk 0:03:00.4]} 3... Nd5 {[%clk 0:02:59.6]}
4. Nf3 {[%clk 0:03:00.7]} 4... Nc6 {[%clk 0:02:59.2]} 5. Bc4 {[%clk 0:03:00.4]}
5... Nb6 {[%clk 0:02:58.5]} 6. Bb3 {[%clk 0:03:00.6]} 6... g6 {[%clk 0:02:59]}
7. O-O {[%clk 0:02:57.9]} 7... Bg7 {[%clk 0:02:58.8]} 8. Re1 {[%clk 0:02:56.9]}
8... O-O {[%clk 0:02:57.6]} 9. d4 {[%clk 0:02:56.5]} 9... cxd4 {[%clk
0:02:57.5]} 10. cxd4 {[%clk 0:02:57]} 10... d6 {[%clk 0:02:58.4]} 11. Nc3 {[%clk
0:02:16.3]} 11... Bg4 {[%clk 0:02:52.1]} 12. e6 {[%clk 0:02:14]} 12... Nxd4
{[%clk 0:02:43.4]} 13. exf7+ {[%clk 0:02:12.5]} 13... Kh8 {[%clk 0:02:43]} 14.
Be3 {[%clk 0:01:59.8]} 14... Bxf3 {[%clk 0:02:36.5]} 15. gxf3 {[%clk 0:01:58.2]}
15... Nxb3 {[%clk 0:02:35.3]} 16. Qxb3 {[%clk 0:01:57.7]} 16... Qd7 {[%clk
0:02:32.6]} 17. Bxb6 {[%clk 0:01:53.2]} 17... axb6 {[%clk 0:02:32.4]} 18. Nd5
{[%clk 0:01:43.2]} 18... Qh3 {[%clk 0:02:02.8]} 19. Rxe7 {[%clk 0:01:34.9]}
19... Be5 {[%clk 0:01:56.6]} 20. Rxe5 {[%clk 0:01:22.7]} 20... dxe5 {[%clk
0:01:57.5]} 21. Nxb6 {[%clk 0:01:14.2]} 21... Rad8 {[%clk 0:01:36.8]} 22. Re1
{[%clk 0:01:01.3]} 22... Qf5 {[%clk 0:01:31.9]} 23. Qe3 {[%clk 0:00:53.1]} 23...
Rxf7 {[%clk 0:01:25.7]} 24. Nc4 {[%clk 0:00:44.3]} 24... Qxf3 {[%clk 0:01:01.8]}
25. Nxe5 {[%clk 0:00:40.1]} 25... Qxe3 {[%clk 0:00:52.9]} 26. Nxf7+ {[%clk
0:00:39.2]} 26... Kg7 {[%clk 0:00:53.8]} 27. Rxe3 {[%clk 0:00:38.9]} 27... Kxf7
{[%clk 0:00:54.7]} 28. Rb3 {[%clk 0:00:37.4]} 28... Rd7 {[%clk 0:00:54.5]} 29.
Rb6 {[%clk 0:00:37.3]} 29... Ke8 {[%clk 0:00:51.5]} 30. Kg2 {[%clk 0:00:36.8]}
30... Kd8 {[%clk 0:00:52]} 31. a4 {[%clk 0:00:34.7]} 31... Kc7 {[%clk
0:00:52.9]} 32. a5 {[%clk 0:00:33.4]} 32... Rd5 {[%clk 0:00:53.3]} 33. b4 {[%clk
0:00:33.5]} 33... Rg5+ {[%clk 0:00:53.1]} 34. Kf3 {[%clk 0:00:33.3]} 34... Rh5
{[%clk 0:00:51.5]} 35. Kg3 {[%clk 0:00:32.6]} 35... Rg5+ {[%clk 0:00:51.6]} 36.
Kf4 {[%clk 0:00:32.4]} 36... Rg2 {[%clk 0:00:49.1]} 37. h4 {[%clk 0:00:23.6]}
37... Rxf2+ {[%clk 0:00:47.2]} 38. Kg5 {[%clk 0:00:20.6]} 38... Rf5+ {[%clk
0:00:47.6]} 39. Kg4 {[%clk 0:00:20.4]} 39... Rd5 {[%clk 0:00:47.3]} 40. Kg3
{[%clk 0:00:15.3]} 40... Rd4 {[%clk 0:00:47.1]} 41. Rb5 {[%clk 0:00:14.9]} 41...
Kc6 {[%clk 0:00:39.2]} 42. Rb6+ {[%clk 0:00:12.9]} 42... Kc7 {[%clk 0:00:39.1]}
43. Rb5 {[%clk 0:00:13.1]} 43... Rc4 {[%clk 0:00:35.1]} 44. h5 {[%clk
0:00:11.9]} 44... gxh5 {[%clk 0:00:34.4]} 45. Rxh5 {[%clk 0:00:11]} 45... Rxb4
{[%clk 0:00:34.5]} 46. Rxh7+ {[%clk 0:00:10.8]} 46... Kb8 {[%clk 0:00:35.4]} 47.
Rh5 {[%clk 0:00:09.6]} 47... Ka7 {[%clk 0:00:35.2]} 48. Kf3 {[%clk 0:00:09.4]}
48... Ka6 {[%clk 0:00:35.7]} 49. Ke3 {[%clk 0:00:09.2]} 49... Rb5 {[%clk
0:00:36]} 50. Rh6+ {[%clk 0:00:06.5]} 50... Kxa5 {[%clk 0:00:35.7]} 51. Kd3
{[%clk 0:00:06.6]} 51... Rc5 {[%clk 0:00:35.1]} 52. Rh4 {[%clk 0:00:05.6]} 52...
b5 {[%clk 0:00:34.4]} 53. Rh8 {[%clk 0:00:04.4]} 53... Rc7 {[%clk 0:00:33.9]}
54. Ra8+ {[%clk 0:00:02.6]} 54... Kb4 {[%clk 0:00:33.3]} 55. Rb8 {[%clk
0:00:03.2]} 55... Ka4 {[%clk 0:00:33.3]} 56. Ra8+ {[%clk 0:00:03.3]} 56... Kb3
{[%clk 0:00:33.7]} 57. Rb8 {[%clk 0:00:03.5]} 57... Rd7+ {[%clk 0:00:33.4]} 58.
Ke2 {[%clk 0:00:03.5]} 58... b4 {[%clk 0:00:34.3]} 59. Rb6 {[%clk 0:00:02.9]}
59... Kc3 {[%clk 0:00:33.8]} 60. Rc6+ {[%clk 0:00:03.1]} 60... Kb2 {[%clk
0:00:34.2]} 61. Rb6 {[%clk 0:00:03.4]} 61... b3 {[%clk 0:00:34.7]} 62. Rb8
{[%clk 0:00:03.4]} 62... Kc2 {[%clk 0:00:34.6]} 63. Rc8+ {[%clk 0:00:03.3]}
63... Kb1 {[%clk 0:00:34.7]} 64. Rb8 {[%clk 0:00:04.1]} 64... b2 {[%clk
0:00:34.8]} 65. Rb6 {[%clk 0:00:04]} 65... Rd5 {[%clk 0:00:34.1]} 66. Ke1 {[%clk
0:00:03.8]} 66... Kc2 {[%clk 0:00:33.8]} 67. Rc6+ {[%clk 0:00:04.1]} 67... Kb3
{[%clk 0:00:34]} 68. Rb6+ {[%clk 0:00:04.5]} 68... Kc3 {[%clk 0:00:34.2]} 69.
Rc6+ {[%clk 0:00:04.7]} 69... Kb4 {[%clk 0:00:33.6]} 70. Rb6+ {[%clk 0:00:04.9]}
70... Rb5 {[%clk 0:00:34]} 71. Rxb5+ {[%clk 0:00:05.2]} 0-1

[Event "*** Titled Tuesday Blitz"]
[Site "Chess.com"]
[Date "2020.10.27"]
[Round "6"]
[White "Zhani-Z"]
[Black "Smirnov_Pavel"]
[Result "0-1"]
[WhiteElo "2533"]
[BlackElo "2851"]
[TimeControl "180+1"]
[EndTime "11:08:08 PDT"]
[Termination "Smirnov_Pavel won on time"]

1. e4 {[%clk 0:03:00.9]} 1... c5 {[%clk 0:02:59.5]} 2. Nf3 {[%clk 0:03:00.7]}
2... Nc6 {[%clk 0:03:00]} 3. Bb5 {[%clk 0:03:00]} 3... g6 {[%clk 0:02:59.7]} 4.
O-O {[%clk 0:02:59.8]} 4... Bg7 {[%clk 0:02:59.2]} 5. Nc3 {[%clk 0:03:00.3]}
5... Nf6 {[%clk 0:02:57.9]} 6. e5 {[%clk 0:03:00]} 6... Ng4 {[%clk 0:02:57.4]}
7. Re1 {[%clk 0:02:59.4]} 7... Ngxe5 {[%clk 0:02:55.1]} 8. Nxe5 {[%clk
0:02:53.4]} 8... Nxe5 {[%clk 0:02:54.1]} 9. d3 {[%clk 0:02:52.3]} 9... O-O
{[%clk 0:02:51.1]} 10. Bg5 {[%clk 0:02:52.5]} 10... h6 {[%clk 0:02:46.6]} 11.
Bh4 {[%clk 0:02:52.4]} 11... g5 {[%clk 0:02:42.3]} 12. Bg3 {[%clk 0:02:52.3]}
12... d6 {[%clk 0:02:42.2]} 13. f4 {[%clk 0:02:50.6]} 13... gxf4 {[%clk
0:02:37.8]} 14. Bxf4 {[%clk 0:02:50.7]} 14... a6 {[%clk 0:02:34.6]} 15. Bc4
{[%clk 0:02:47.3]} 15... e6 {[%clk 0:02:31.3]} 16. Qd2 {[%clk 0:02:45]} 16... b5
{[%clk 0:02:28.2]} 17. Bb3 {[%clk 0:02:43.1]} 17... c4 {[%clk 0:02:27.8]} 18.
dxc4 {[%clk 0:02:43.3]} 18... bxc4 {[%clk 0:02:24.5]} 19. Ba4 {[%clk 0:02:43.1]}
19... Ng6 {[%clk 0:02:15.6]} 20. Bxh6 {[%clk 0:02:34.4]} 20... Bxh6 {[%clk
0:02:09]} 21. Qxh6 {[%clk 0:02:33.4]} 21... d5 {[%clk 0:02:09.9]} 22. Rad1
{[%clk 0:02:20.8]} 22... Qh4 {[%clk 0:02:06.6]} 23. Qd2 {[%clk 0:02:12.7]} 23...
Rb8 {[%clk 0:02:04.3]} 24. Re3 {[%clk 0:01:54.2]} 24... Bb7 {[%clk 0:01:55.7]}
25. Rg3 {[%clk 0:01:32.2]} 25... Rbd8 {[%clk 0:01:50.5]} 26. Qf2 {[%clk
0:01:20]} 26... Qh8 {[%clk 0:01:42.2]} 27. Re1 {[%clk 0:00:58.5]} 27... Qh5
{[%clk 0:01:26.6]} 28. Ne2 {[%clk 0:00:53.2]} 28... e5 {[%clk 0:01:23.8]} 29. c3
{[%clk 0:00:46.6]} 29... Rd6 {[%clk 0:01:19.7]} 30. Bc2 {[%clk 0:00:43.2]} 30...
f5 {[%clk 0:01:13.7]} 31. Qc5 {[%clk 0:00:26.2]} 31... Rdf6 {[%clk 0:01:11.4]}
32. Qc7 {[%clk 0:00:19.7]} 32... R8f7 {[%clk 0:01:10.7]} 33. Qxe5 {[%clk
0:00:18.8]} 33... Qh4 {[%clk 0:01:08.1]} 34. Nf4 {[%clk 0:00:17.8]} 34... Qxg3
{[%clk 0:00:45.8]} 35. Qe8+ {[%clk 0:00:16.4]} 35... Rf8 {[%clk 0:00:45.6]} 36.
Qxf8+ {[%clk 0:00:15.9]} 36... Nxf8 {[%clk 0:00:42.2]} 37. hxg3 {[%clk
0:00:16.8]} 37... Kf7 {[%clk 0:00:42.1]} 38. Re5 {[%clk 0:00:13.4]} 38... Rb6
{[%clk 0:00:42.1]} 39. Rxf5+ {[%clk 0:00:13]} 39... Ke7 {[%clk 0:00:40.9]} 40.
b4 {[%clk 0:00:13.2]} 40... d4 {[%clk 0:00:38.3]} 41. cxd4 {[%clk 0:00:08.9]}
41... Rxb4 {[%clk 0:00:38.4]} 42. Rc5 {[%clk 0:00:05]} 42... Kd6 {[%clk
0:00:36.4]} 43. Rg5 {[%clk 0:00:03.2]} 43... Rb2 {[%clk 0:00:34.8]} 44. Bf5
{[%clk 0:00:02.3]} 44... c3 {[%clk 0:00:33.8]} 45. Rg8 {[%clk 0:00:01.8]} 45...
Ke7 {[%clk 0:00:33.5]} 46. Rg7+ {[%clk 0:00:01.7]} 46... Kf6 {[%clk 0:00:33.1]}
47. Rg8 {[%clk 0:00:01.3]} 47... Kf7 {[%clk 0:00:22.5]} 48. Rg5 {[%clk
0:00:01.3]} 48... c2 {[%clk 0:00:20.8]} 49. Bxc2 {[%clk 0:00:01.5]} 49... Rxc2
{[%clk 0:00:21.7]} 50. Rf5+ {[%clk 0:00:02.1]} 50... Ke7 {[%clk 0:00:20.8]} 51.
g4 {[%clk 0:00:02.4]} 51... Nd7 {[%clk 0:00:18]} 52. g5 {[%clk 0:00:02.6]} 52...
Be4 {[%clk 0:00:18.5]} 53. Ra5 {[%clk 0:00:01.3]} 53... Bb7 {[%clk 0:00:14.9]}
54. g6 {[%clk 0:00:01.1]} 54... Kf6 {[%clk 0:00:15.1]} 55. Rg5 {[%clk
0:00:01.6]} 55... Kxg5 {[%clk 0:00:14.5]} 56. g7 {[%clk 0:00:02]} 56... Nf6
{[%clk 0:00:14.7]} 0-1

[Event "*** Titled Tuesday Blitz"]
[Site "Chess.com"]
[Date "2020.10.27"]
[Round "6"]
[White "GjakanTati"]
[Black "TimofeevAr"]
[Result "0-1"]
[WhiteElo "2613"]
[BlackElo "2783"]
[TimeControl "180+1"]
[EndTime "11:08:13 PDT"]
[Termination "TimofeevAr won by resignation"]

1. d4 {[%clk 0:03:00.9]} 1... d5 {[%clk 0:02:59.5]} 2. c4 {[%clk 0:03:01]} 2...
dxc4 {[%clk 0:02:59.8]} 3. Nf3 {[%clk 0:02:57.5]} 3... Nf6 {[%clk 0:02:59.1]} 4.
e3 {[%clk 0:02:55.3]} 4... e6 {[%clk 0:02:59.4]} 5. Bxc4 {[%clk 0:02:54.1]} 5...
a6 {[%clk 0:02:59.8]} 6. a4 {[%clk 0:02:53.8]} 6... b6 {[%clk 0:02:59.1]} 7. O-O
{[%clk 0:02:54]} 7... Bb7 {[%clk 0:02:59.5]} 8. Nc3 {[%clk 0:02:54.4]} 8... c5
{[%clk 0:02:59.9]} 9. Qe2 {[%clk 0:02:51.1]} 9... Be7 {[%clk 0:02:57.4]} 10. Rd1
{[%clk 0:02:50.8]} 10... Qc7 {[%clk 0:02:55.1]} 11. b3 {[%clk 0:02:34.2]} 11...
O-O {[%clk 0:02:53.6]} 12. Bb2 {[%clk 0:02:34.1]} 12... Nbd7 {[%clk 0:02:53.8]}
13. Rac1 {[%clk 0:02:26.7]} 13... Rfd8 {[%clk 0:02:52.9]} 14. h3 {[%clk
0:02:10.5]} 14... cxd4 {[%clk 0:02:38.2]} 15. exd4 {[%clk 0:02:06.7]} 15... Qd6
{[%clk 0:02:35.3]} 16. Ne5 {[%clk 0:01:51.6]} 16... Nf8 {[%clk 0:02:24.7]} 17.
Nb1 {[%clk 0:01:32]} 17... Qb8 {[%clk 0:02:16]} 18. Nd2 {[%clk 0:01:28.4]} 18...
Nd5 {[%clk 0:02:10.5]} 19. Ndf3 {[%clk 0:01:22.7]} 19... Qd6 {[%clk 0:02:08.6]}
20. Ra1 {[%clk 0:01:11.9]} 20... Qb8 {[%clk 0:01:59.6]} 21. Qc2 {[%clk
0:01:06.6]} 21... Rc8 {[%clk 0:01:51.6]} 22. Qd2 {[%clk 0:01:04.7]} 22... Ng6
{[%clk 0:01:50.7]} 23. Nxg6 {[%clk 0:00:54]} 23... hxg6 {[%clk 0:01:50.7]} 24.
Ne5 {[%clk 0:00:54.7]} 24... Bf6 {[%clk 0:01:51]} 25. Nd7 {[%clk 0:00:53]} 25...
Qd6 {[%clk 0:01:51.1]} 26. Nxf6+ {[%clk 0:00:49.6]} 26... Nxf6 {[%clk
0:01:47.4]} 27. Ba3 {[%clk 0:00:46.4]} 27... Qd7 {[%clk 0:01:44.7]} 28. Qb4
{[%clk 0:00:44.6]} 28... Nd5 {[%clk 0:01:36.4]} 29. Qe1 {[%clk 0:00:40]} 29...
b5 {[%clk 0:01:35.1]} 30. axb5 {[%clk 0:00:38.2]} 30... axb5 {[%clk 0:01:35.5]}
31. Bf1 {[%clk 0:00:38.8]} 31... g5 {[%clk 0:01:23.8]} 32. Bc5 {[%clk
0:00:38.3]} 32... Nf4 {[%clk 0:01:20.4]} 33. Qe5 {[%clk 0:00:34.2]} 33... f6
{[%clk 0:01:20.2]} 34. Qe3 {[%clk 0:00:33.5]} 34... Qd5 {[%clk 0:01:18.6]} 35.
f3 {[%clk 0:00:29.1]} 35... Bc6 {[%clk 0:01:13.5]} 36. Re1 {[%clk 0:00:25.5]}
36... Kf7 {[%clk 0:01:12.1]} 37. Qd2 {[%clk 0:00:23.3]} 37... Rd8 {[%clk
0:01:09.3]} 38. Qc2 {[%clk 0:00:22.5]} 38... Kg8 {[%clk 0:01:01]} 39. b4 {[%clk
0:00:22.5]} 39... Kf7 {[%clk 0:00:42.3]} 40. Ra5 {[%clk 0:00:22]} 40... Rxa5
{[%clk 0:00:39.5]} 41. bxa5 {[%clk 0:00:22.9]} 41... Ra8 {[%clk 0:00:39.9]} 42.
Ra1 {[%clk 0:00:22.6]} 42... b4 {[%clk 0:00:34.3]} 43. Qd2 {[%clk 0:00:20.4]}
43... b3 {[%clk 0:00:34.1]} 44. Qc3 {[%clk 0:00:19.7]} 44... Rb8 {[%clk
0:00:26.3]} 45. Bc4 {[%clk 0:00:19.5]} 45... Qd7 {[%clk 0:00:23.1]} 46. Kh2
{[%clk 0:00:18]} 46... Bd5 {[%clk 0:00:23.2]} 47. Bf1 {[%clk 0:00:16]} 47... Qc7
{[%clk 0:00:22.8]} 48. Kg1 {[%clk 0:00:14.9]} 48... b2 {[%clk 0:00:20.8]} 49.
Rb1 {[%clk 0:00:14.8]} 49... Rb3 {[%clk 0:00:20.9]} 50. Qc2 {[%clk 0:00:14.4]}
50... Qxa5 {[%clk 0:00:20]} 51. Rxb2 {[%clk 0:00:14.5]} 51... Rxb2 {[%clk
0:00:18]} 52. Qxb2 {[%clk 0:00:15.4]} 52... Qe1 {[%clk 0:00:17.7]} 53. Qc2
{[%clk 0:00:13]} 53... Bxf3 {[%clk 0:00:13.3]} 54. gxf3 {[%clk 0:00:11.8]} 54...
Nxh3+ {[%clk 0:00:13.6]} 55. Kg2 {[%clk 0:00:12.3]} 55... Nf4+ {[%clk
0:00:13.9]} 56. Kg1 {[%clk 0:00:12.7]} 56... Nh3+ {[%clk 0:00:14.3]} 57. Kg2
{[%clk 0:00:13.1]} 57... Nf4+ {[%clk 0:00:14.8]} 58. Kg1 {[%clk 0:00:13.6]}
58... Qg3+ {[%clk 0:00:14.6]} 59. Bg2 {[%clk 0:00:14.1]} 59... g4 {[%clk
0:00:14.2]} 60. fxg4 {[%clk 0:00:12.5]} 60... Qxg4 {[%clk 0:00:14.7]} 61. Qf2
{[%clk 0:00:12.1]} 61... Nh3+ {[%clk 0:00:14.4]} 62. Kf1 {[%clk 0:00:12]} 62...
Nxf2 {[%clk 0:00:14.7]} 63. Kxf2 {[%clk 0:00:12.9]} 63... Qf4+ {[%clk
0:00:15.1]} 64. Bf3 {[%clk 0:00:13.1]} 64... g5 {[%clk 0:00:15.1]} 65. Kg2
{[%clk 0:00:13.1]} 65... g4 {[%clk 0:00:15.2]} 66. Be2 {[%clk 0:00:13.1]} 66...
Qe4+ {[%clk 0:00:15]} 67. Kf2 {[%clk 0:00:13.1]} 67... f5 {[%clk 0:00:15.5]} 68.
Bf1 {[%clk 0:00:13.1]} 68... f4 {[%clk 0:00:15.6]} 0-1

[Event "*** Titled Tuesday Blitz"]
[Site "Chess.com"]
[Date "2020.10.27"]
[Round "6"]
[White "PaulfromSPb"]
[Black "avantage_ru"]
[Result "1-0"]
[WhiteElo "2710"]
[BlackElo "2819"]
[TimeControl "180+1"]
[EndTime "11:08:17 PDT"]
[Termination "PaulfromSPb won by resignation"]

1. d4 {[%clk 0:03:00.9]} 1... Nf6 {[%clk 0:02:58.2]} 2. Bf4 {[%clk 0:02:59.8]}
2... b5 {[%clk 0:02:56.3]} 3. e3 {[%clk 0:02:58.8]} 3... Bb7 {[%clk 0:02:56.2]}
4. Nf3 {[%clk 0:02:57.7]} 4... a6 {[%clk 0:02:56.1]} 5. a4 {[%clk 0:02:56.6]}
5... b4 {[%clk 0:02:56]} 6. c3 {[%clk 0:02:54.7]} 6... e6 {[%clk 0:02:55.6]} 7.
Bd3 {[%clk 0:02:49.9]} 7... c5 {[%clk 0:02:53.9]} 8. O-O {[%clk 0:02:48.9]} 8...
d5 {[%clk 0:02:53.2]} 9. cxb4 {[%clk 0:02:42.7]} 9... cxb4 {[%clk 0:02:44.6]}
10. Nbd2 {[%clk 0:02:42.5]} 10... Nc6 {[%clk 0:02:43.9]} 11. Nb3 {[%clk
0:02:38.3]} 11... Ne4 {[%clk 0:02:35]} 12. Rc1 {[%clk 0:02:34.2]} 12... Be7
{[%clk 0:02:27.8]} 13. Bxe4 {[%clk 0:02:24.6]} 13... dxe4 {[%clk 0:02:27.6]} 14.
Ne5 {[%clk 0:02:24.6]} 14... Nxe5 {[%clk 0:02:26.5]} 15. Bxe5 {[%clk 0:02:24.1]}
15... O-O {[%clk 0:02:19.2]} 16. Nc5 {[%clk 0:02:23]} 16... Bd5 {[%clk
0:02:16.9]} 17. Qg4 {[%clk 0:02:16]} 17... g6 {[%clk 0:01:54.2]} 18. Qg3 {[%clk
0:02:11.7]} 18... a5 {[%clk 0:01:36.7]} 19. Bc7 {[%clk 0:02:09.9]} 19... Qe8
{[%clk 0:01:33.3]} 20. Bd6 {[%clk 0:02:09.6]} 20... f6 {[%clk 0:01:27.7]} 21.
Bxe7 {[%clk 0:02:06.9]} 21... Qxe7 {[%clk 0:01:28.6]} 22. Qg4 {[%clk 0:02:05.3]}
22... Kh8 {[%clk 0:01:23.9]} 23. Qf4 {[%clk 0:02:03.5]} 23... g5 {[%clk
0:01:21.5]} 24. Qg3 {[%clk 0:01:59.9]} 24... Rac8 {[%clk 0:01:18.2]} 25. Rc2
{[%clk 0:01:47.5]} 25... Rc6 {[%clk 0:01:15.7]} 26. Rfc1 {[%clk 0:01:46.9]}
26... Rfc8 {[%clk 0:01:14.5]} 27. Rd2 {[%clk 0:01:43.7]} 27... Qc7 {[%clk
0:01:11.1]} 28. Rcd1 {[%clk 0:01:40.8]} 28... Qxg3 {[%clk 0:01:10]} 29. hxg3
{[%clk 0:01:26.4]} 29... Kg7 {[%clk 0:01:08.3]} 30. Rc1 {[%clk 0:01:20.8]} 30...
Kg6 {[%clk 0:01:03]} 31. Rcd1 {[%clk 0:01:18.2]} 31... h5 {[%clk 0:01:03.2]} 32.
Kf1 {[%clk 0:01:17.5]} 32... Rh8 {[%clk 0:00:59]} 33. Ke2 {[%clk 0:01:17.1]}
33... h4 {[%clk 0:00:55.4]} 34. gxh4 {[%clk 0:01:13.3]} 34... Rxh4 {[%clk
0:00:54.1]} 35. Rc2 {[%clk 0:01:06.7]} 35... Bb3 {[%clk 0:00:52.2]} 36. Kd2
{[%clk 0:00:53]} 36... Bxc2 {[%clk 0:00:51.5]} 37. Kxc2 {[%clk 0:00:53.9]} 37...
Rh2 {[%clk 0:00:51.7]} 38. Rg1 {[%clk 0:00:54]} 38... f5 {[%clk 0:00:50.6]} 39.
Kb3 {[%clk 0:00:53.4]} 39... Rb6 {[%clk 0:00:43.4]} 40. Kc4 {[%clk 0:00:52.6]}
40... b3 {[%clk 0:00:42.9]} 41. Kc3 {[%clk 0:00:48.8]} 41... g4 {[%clk
0:00:38.7]} 42. Nxb3 {[%clk 0:00:45.9]} 42... Rb4 {[%clk 0:00:37.4]} 43. Nxa5
{[%clk 0:00:43.8]} 43... Rxa4 {[%clk 0:00:37.2]} 44. Nb3 {[%clk 0:00:39.5]}
44... Kf6 {[%clk 0:00:36.3]} 45. Nc5 {[%clk 0:00:39.4]} 45... Ra7 {[%clk
0:00:36.2]} 46. Kc4 {[%clk 0:00:28.1]} 46... g3 {[%clk 0:00:34.1]} 47. fxg3
{[%clk 0:00:25.9]} 47... Rg7 {[%clk 0:00:34.4]} 48. b4 {[%clk 0:00:25.8]} 48...
Rxg3 {[%clk 0:00:34.2]} 49. b5 {[%clk 0:00:23.4]} 49... Rxe3 {[%clk 0:00:32]}
50. b6 {[%clk 0:00:23.3]} 50... Rh8 {[%clk 0:00:29.5]} 51. b7 {[%clk 0:00:22.2]}
51... Ke7 {[%clk 0:00:28.9]} 52. Na6 {[%clk 0:00:21.4]} 52... Rg3 {[%clk
0:00:22.5]} 53. b8=Q {[%clk 0:00:20.2]} 53... Rxb8 {[%clk 0:00:23]} 54. Nxb8
{[%clk 0:00:21]} 54... Kd6 {[%clk 0:00:23.5]} 55. Na6 {[%clk 0:00:17.5]} 55...
f4 {[%clk 0:00:23.8]} 56. Nc5 {[%clk 0:00:17.1]} 56... Ke7 {[%clk 0:00:18]} 57.
Nxe4 {[%clk 0:00:16.7]} 57... Re3 {[%clk 0:00:18.5]} 58. Ng5 {[%clk 0:00:15.4]}
58... Re2 {[%clk 0:00:17.6]} 59. Nf3 {[%clk 0:00:14.9]} 59... Kf6 {[%clk
0:00:18]} 60. Kd3 {[%clk 0:00:14]} 60... Re3+ {[%clk 0:00:17.6]} 61. Kd2 {[%clk
0:00:14.1]} 61... Kf5 {[%clk 0:00:18.5]} 62. Rh1 {[%clk 0:00:13.8]} 62... Kg4
{[%clk 0:00:18.4]} 63. Rh6 {[%clk 0:00:13.6]} 63... Kg3 {[%clk 0:00:17.1]} 64.
Rg6+ {[%clk 0:00:13.7]} 64... Kf2 {[%clk 0:00:17.5]} 65. Ne5 {[%clk 0:00:13.7]}
65... Rg3 {[%clk 0:00:16.7]} 66. Rf6 {[%clk 0:00:12.8]} 66... Rxg2 {[%clk
0:00:16.1]} 67. Rxf4+ {[%clk 0:00:12]} 67... Kg3+ {[%clk 0:00:16.6]} 68. Ke3
{[%clk 0:00:12.4]} 68... Re2+ {[%clk 0:00:17.2]} 69. Kxe2 {[%clk 0:00:12.2]}
69... Kxf4 {[%clk 0:00:18.1]} 70. Kd3 {[%clk 0:00:12.5]} 70... Kf5 {[%clk
0:00:18.6]} 71. Ke3 {[%clk 0:00:12.8]} 1-0